bitfinex-derivatives/quotes_SOLF0:USTF0_20250404
["timestamp","ask_amount","ask_price","bid_price","bid_amount"]
[1743744979926,0.05854232,116.01,115.98,0.05440291]
[1743744980830,8.68204232,116.01,115.99,8.6246]
[1743744983230,0.05854232,116.01,115.99,8.6246]
[1743744984131,0.05854232,116.01,116.0,8.6239]
[1743744986132,0.05854232,116.01,115.99,8.6242]
[1743744986330,0.05854232,116.01,115.98,0.05440291]
[1743744986730,8.68204232,116.01,115.98,0.05440291]
[1743744987327,0.05854232,116.01,115.98,0.05440291]
[1743744987523,0.05854232,116.01,116.0,8.6239]
[1743744988231,0.05854232,116.01,115.99,8.6242]
[1743744989631,9.92411343,116.01,116.0,8.6239]
[1743744990735,0.05854232,116.01,116.0,8.6239]
[1743744991238,4.232e-05,116.01,116.0,8.6239]
[1743744991438,4.232e-05,116.01,116.0,18.48947111]
[1743744996042,4.232e-05,116.01,116.0,27.10947111]
[1743744996242,4.232e-05,116.01,116.0,18.48947111]
[1743744996437,2.1619,116.07,116.05,8.6198]
[1743744996639,4.6317,116.09,115.99,37.7561]
[1743744996640,14.49727111,116.09,116.04,9.86557111]
[1743744996843,12.18307111,116.09,116.04,9.86557111]
[1743744997032,8.6177,116.09,116.06,8.619]
[1743744997232,4.7106,116.12,116.06,30.98]
[1743744997434,4.7106,116.12,116.08,9.86557111]
[1743744997743,0.06576687,116.11,116.09,0.06633964]
[1743744997940,9.86557111,116.1,116.09,0.06633964]
[1743744998145,49.86207111,116.1,116.09,0.06633964]
[1743744998338,41.24557111,116.1,116.03,9.86557111]
[1743744998540,9.86557111,116.08,116.03,9.86557111]
[1743744998835,9.86557111,116.08,116.04,8.6203]
[1743744998836,18.48397111,116.08,116.04,8.6203]
[1743744999037,9.86557111,116.08,116.04,8.6203]
[1743744999244,9.86557111,116.08,116.03,9.86557111]
[1743744999437,8.67776002,116.07,116.05,0.06100421]
[1743744999641,18.54333113,116.07,116.05,0.06100421]
[1743745000447,0.05866002,116.07,116.05,0.06100421]
[1743745002043,0.05866002,116.07,116.05,8.68080421]
[1743745002548,0.05866002,116.07,116.05,0.06100421]
[1743745002848,0.05866002,116.07,116.06,8.6195]
[1743745004245,0.05866002,116.07,116.06,18.48507111]
[1743745005449,0.05866002,116.07,116.06,8.6195]
[1743745010354,0.05866002,116.07,116.05,8.68080421]
[1743745010553,0.05866002,116.07,116.05,0.06100421]
[1743745011055,0.05866002,116.07,116.05,8.68090421]
[1743745011457,0.05866002,116.07,116.05,0.06100421]
[1743745011856,0.05866002,116.07,116.06,8.6195]
[1743745012556,0.05866002,116.07,116.06,18.48507111]
[1743745013460,6.002e-05,116.07,116.06,18.48507111]
[1743745014760,6.002e-05,116.07,116.06,49.78507111]
[1743745015160,31.36,116.13,116.11,8.6156]
[1743745015656,9.86557111,116.14,116.06,31.3]
[1743745015657,9.86557111,116.15,116.12,8.6148]
[1743745015862,41.26557111,116.15,116.12,8.6148]
[1743745016057,9.86557111,116.14,116.11,8.6156]
[1743745016259,9.86557111,116.14,116.12,0.05654188]
[1743745016760,8.6145,116.13,116.12,0.05654188]
[1743745016960,9.86557111,116.14,116.12,0.05654188]
[1743745017156,9.86557111,116.13,116.12,0.05654188]
[1743745017360,18.47987111,116.13,116.12,0.05654188]
[1743745018062,8.6143,116.13,116.12,0.05654188]
[1743745018858,18.47987111,116.13,116.12,0.05654188]
[1743745019063,49.83987111,116.13,116.12,0.05654188]
[1743745019664,41.22557111,116.13,116.12,0.05654188]
[1743745020265,31.36,116.13,116.12,8.67154188]
[1743745021064,41.22557111,116.13,116.12,0.05654188]
[1743745021265,41.22557111,116.13,116.06,31.3]
[1743745021562,9.86557111,116.15,116.1,9.86557111]
[1743745021963,18.47867111,116.15,116.1,9.86557111]
[1743745022168,18.47867111,116.15,116.12,8.6149]
[1743745022354,49.91867111,116.15,116.12,8.6149]
[1743745022555,0.05704841,116.14,116.12,8.6149]
[1743745022966,0.05704841,116.14,116.13,8.6143]
[1743745023873,0.05704841,116.14,116.12,8.6146]
[1743745024161,8.67064841,116.14,116.11,0.05564778]
[1743745024368,18.53621952,116.14,116.12,8.615]
[1743745024568,9.92261952,116.14,116.12,8.615]
[1743745025569,0.05704841,116.14,116.13,8.6143]
[1743745026971,9.92261952,116.14,116.12,8.6148]
[1743745027271,0.05704841,116.14,116.11,0.05564778]
[1743745028072,0.05704841,116.14,116.12,8.615]
[1743745029274,0.05704841,116.14,116.13,8.6143]
[1743745030072,9.92261952,116.14,116.11,0.05564778]
[1743745030471,9.92261952,116.14,116.12,8.6147]
[1743745030772,0.05704841,116.14,116.12,8.6147]
[1743745031872,8.67074841,116.14,116.12,8.6147]
[1743745032176,18.53631952,116.14,116.12,8.6147]
[1743745033478,9.92261952,116.14,116.12,8.6147]
[1743745033874,9.92261952,116.14,116.13,8.6143]
[1743745034071,18.53621952,116.14,116.11,0.05564778]
[1743745034479,18.53621952,116.14,116.12,8.6146]
[1743745034777,9.92261952,116.14,116.12,8.6146]
[1743745035172,0.05704841,116.14,116.12,8.6146]
[1743745035979,0.05704841,116.14,116.13,8.6143]
[1743745036879,9.86557111,116.2,116.17,8.6108]
[1743745037280,8.6094,116.2,116.16,9.86557111]
[1743745037582,47.93447111,116.21,116.16,9.86557111]
[1743745037876,9.86557111,116.18,116.15,8.6122]
[1743745038081,9.86557111,116.18,116.17,0.05598984]
[1743745038281,9.86557111,116.18,116.13,9.86557111]
[1743745038482,9.86557111,116.18,116.16,0.05649415]
[1743745038675,0.05746146,116.17,116.16,0.05649415]
[1743745038876,9.86557111,116.19,116.16,0.05649415]
[1743745039182,0.06094103,116.18,116.16,0.05649415]
[1743745039877,8.67184103,116.18,116.16,0.05649415]
[1743745040379,0.06094103,116.18,116.16,8.66849415]
[1743745040780,31.26,116.24,116.17,8.6109]
[1743745040981,6.6,116.22,116.15,41.12557111]
[1743745041181,9.86557111,116.21,116.16,9.86557111]
[1743745041579,8.6094,116.2,116.17,8.6109]
[1743745041881,9.86557111,116.21,116.16,9.86557111]
[1743745042079,0.05612445,116.2,116.17,8.6658411]
[1743745042279,9.92169556,116.2,116.17,0.0550411]
[1743745042783,8.6102,116.19,116.17,0.0550411]
[1743745042982,9.92169556,116.2,116.17,8.6660411]
[1743745043380,18.53109556,116.2,116.17,8.6660411]
[1743745043982,0.05612445,116.2,116.19,8.6098]
[1743745048382,9.86557111,116.24,116.22,8.6071]
[1743745048784,9.86557111,116.23,116.18,43.33697111]
[1743745049085,9.86557111,116.23,116.21,8.6082]
[1743745049387,9.86557111,116.23,116.18,43.33697111]
[1743745049581,18.53228669,116.23,116.21,0.0567903]
[1743745050087,49.73228669,116.23,116.21,0.0567903]
[1743745050385,0.05951558,116.23,116.21,8.6650903]
[1743745050578,0.05951558,116.23,116.21,0.0567903]
[1743745051487,0.05951558,116.23,116.22,8.6076]
[1743745053987,0.05951558,116.23,116.21,0.0567903]
[1743745054485,0.05951558,116.23,116.22,8.6076]
[1743745055586,0.05951558,116.23,116.21,0.0567903]
[1743745056991,0.05951558,116.23,116.22,8.6076]
[1743745057591,0.05951558,116.23,116.21,8.6646903]
[1743745057790,9.92508669,116.23,116.21,0.0567903]
[1743745058590,9.92508669,116.23,116.22,8.6076]
[1743745059695,0.05951558,116.23,116.22,8.6076]
[1743745059889,9.92508669,116.23,116.22,8.6076]
[1743745060993,9.92508669,116.23,116.21,8.6645903]
[1743745061289,0.05951558,116.23,116.21,0.0567903]
[1743745061591,0.05951558,116.23,116.22,8.6076]
[1743745062387,9.92508669,116.23,116.21,8.6646903]
[1743745063191,9.92508669,116.23,116.22,8.6076]
[1743745064997,0.05951558,116.23,116.22,8.6076]
[1743745065492,0.05951558,116.23,116.21,0.0567903]
[1743745065989,9.92508669,116.23,116.21,0.0567903]
[1743745066493,18.53228669,116.23,116.21,0.0567903]
[1743745067794,0.05951558,116.23,116.21,8.6647903]
[1743745067995,0.05951558,116.23,116.21,0.0567903]
[1743745068891,0.05951558,116.23,116.22,8.6076]
[1743745069695,4.6855,116.31,116.22,49.84557111]
[1743745069895,23.15237111,116.31,116.25,9.86557111]
[1743745070093,23.15237111,116.31,116.27,8.6034]
[1743745070296,14.55107111,116.31,116.25,9.86557111]
[1743745070495,45.91107111,116.31,116.26,9.86557111]
[1743745070695,45.91107111,116.31,116.27,8.6035]
[1743745070897,0.06002245,116.3,116.27,0.0609676]
[1743745071094,0.06002245,116.3,116.28,8.6028]
[1743745071590,0.06002245,116.3,116.27,9.92653871]
[1743745072495,0.06002245,116.3,116.27,0.0609676]
[1743745074695,8.6027,116.29,116.27,0.0609676]
[1743745074896,0.06002245,116.3,116.27,0.0609676]
[1743745075300,0.06002245,116.3,116.28,8.6031]
[1743745075497,0.06002245,116.3,116.27,0.0609676]
[1743745075798,0.06002245,116.3,116.28,8.6031]
[1743745076199,0.06002245,116.3,116.27,0.0609676]
[1743745076400,8.66182245,116.3,116.27,8.6644676]
[1743745076600,0.06002245,116.3,116.27,0.0609676]
[1743745077098,0.06002245,116.3,116.28,8.6031]
[1743745077300,0.06002245,116.3,116.27,0.0609676]
[1743745077498,0.06002245,116.3,116.28,8.6027]
[1743745077795,0.06002245,116.3,116.27,0.0609676]
[1743745079202,0.06002245,116.3,116.29,8.6024]
[1743745080403,8.66182245,116.3,116.27,0.0609676]
[1743745080704,0.06002245,116.3,116.27,0.0609676]
[1743745081005,0.06002245,116.3,116.28,8.6028]
[1743745081804,8.66172245,116.3,116.27,8.6644676]
[1743745082005,0.06002245,116.3,116.27,0.0609676]
[1743745082705,8.66172245,116.3,116.27,8.6645676]
[1743745084005,0.06002245,116.3,116.28,8.6028]
[1743745084203,0.06002245,116.3,116.27,0.0609676]
[1743745085808,0.06002245,116.3,116.27,31.5009676]
[1743745087006,0.06002245,116.3,116.29,8.6024]
[1743745087307,0.06002245,116.3,116.27,31.5009676]
[1743745088003,0.06002245,116.3,116.29,8.6024]
[1743745088408,0.06002245,116.3,116.27,31.5009676]
[1743745088607,0.06002245,116.3,116.27,8.6644676]
[1743745089105,8.66212245,116.3,116.27,8.6644676]
[1743745089305,0.06002245,116.3,116.27,8.6644676]
[1743745089607,31.44002245,116.3,116.27,0.0609676]
[1743745090209,40.04212245,116.3,116.27,0.0609676]
[1743745090411,15.33934804,116.29,116.27,0.0609676]
[1743745090611,8.6031,116.28,116.27,0.0609676]
[1743745091503,8.6031,116.28,116.23,2.2626]
[1743745091504,8.6048,116.26,116.23,8.6065]
[1743745092411,46.79934804,116.27,116.2,31.48]
[1743745092602,0.05751686,116.25,116.22,0.05577164]
[1743745093410,0.05751686,116.25,116.23,8.6068]
[1743745093614,0.05751686,116.25,116.22,0.05577164]
[1743745094116,0.05751686,116.25,116.24,8.6061]
[1743745097307,9.87950636,116.25,116.23,8.6064]
[1743745098007,9.8219895,116.24,116.22,8.66307164]
[1743745098204,0.05751686,116.25,116.22,8.66307164]
[1743745098205,9.8219895,116.23,116.22,0.05577164]
[1743745098410,49.9494895,116.23,116.17,4.6385]
[1743745098609,9.8219895,116.21,116.17,4.6385]
[1743745098813,9.8219895,116.21,116.19,8.6094]
[1743745099010,9.8219895,116.22,116.17,14.4604895]
[1743745099413,9.8219895,116.22,116.21,8.6083]
[1743745099715,31.58574521,116.23,116.17,36.1985]
[1743745099915,31.58574521,116.23,116.2,0.05673538]
[1743745099916,31.52,116.23,116.2,0.05673538]
[1743745100117,0.06215654,116.21,116.2,0.05673538]
[1743745104220,0.06215654,116.21,116.2,8.66583538]
[1743745105117,0.06215654,116.21,116.2,0.05673538]
[1743745106723,8.67045654,116.21,116.2,0.05673538]
[1743745107022,0.06215654,116.21,116.2,0.05673538]
[1743745108016,8.67045654,116.21,116.2,0.05673538]
[1743745109423,0.06215654,116.21,116.2,0.05673538]
[1743745110427,8.67045654,116.21,116.2,0.05673538]
[1743745110620,0.06215654,116.21,116.14,33.848]
[1743745110824,40.0895,116.2,116.14,33.848]
[1743745111126,31.48,116.2,116.17,8.6106]
[1743745111926,31.53653226,116.2,116.17,8.66821747]
[1743745112327,40.14573226,116.2,116.17,0.05761747]
[1743745113528,40.14573226,116.2,116.17,8.66891747]
[1743745113735,8.6098,116.19,116.17,0.05761747]
[1743745114229,31.53653226,116.2,116.17,0.05761747]
[1743745114230,40.14593226,116.2,116.17,0.05761747]
[1743745114430,31.53653226,116.2,116.17,0.05761747]
[1743745114834,46.89848865,116.2,116.17,0.05761747]
[1743745115325,8.6106,116.18,116.17,0.05761747]
[1743745117029,13.0515,116.19,116.17,0.05761747]
[1743745117421,4.4414,116.19,116.17,0.05761747]
[1743745118228,8.6106,116.18,116.17,0.05761747]
[1743745119825,9.84016737,116.18,116.17,0.05761747]
[1743745125335,18.45076737,116.18,116.17,0.05761747]
[1743745126235,8.6118,116.17,116.14,8.6132]
[1743745126434,31.4,116.16,116.14,8.6132]
[1743745126636,41.24016737,116.16,116.14,8.6132]
[1743745126934,49.85236737,116.16,116.13,8.6139]
[1743745127435,49.91453451,116.16,116.13,8.67114947]
[1743745127837,41.30233451,116.16,116.14,8.6134]
[1743745128736,41.30233451,116.16,116.13,0.05724947]
[1743745128931,31.46216714,116.16,116.13,0.05724947]
[1743745129234,31.46216714,116.16,116.15,8.6128]
[1743745129434,0.06216714,116.16,116.15,8.6128]
[1743745130238,43.45996737,116.23,116.19,8.6093]
[1743745130632,9.84016737,116.23,116.2,8.6086]
[1743745131142,18.44706737,116.23,116.2,8.6086]
[1743745131344,18.51333646,116.23,116.2,0.06122576]
[1743745131544,9.84016737,116.22,116.2,0.06122576]
[1743745132146,9.84016737,116.22,116.2,8.66992576]
[1743745132444,9.90643646,116.23,116.2,8.66992576]
[1743745132746,9.90643646,116.23,116.21,8.6083]
[1743745133046,9.90643646,116.23,116.2,0.06122576]
[1743745133241,9.90643646,116.23,116.2,8.66972576]
[1743745133538,0.06626909,116.23,116.2,9.90139313]
[1743745134447,0.06626909,116.23,116.22,8.6076]
[1743745134948,0.06626909,116.23,116.2,9.90139313]
[1743745135847,0.06626909,116.23,116.22,8.6076]
[1743745145948,9.84016737,116.27,116.24,8.6055]
[1743745146151,9.84016737,116.27,116.22,41.26016737]
[1743745146452,9.84016737,116.27,116.25,8.6053]
[1743745147153,9.90173576,116.27,116.25,8.669232]
[1743745147654,9.90173576,116.27,116.25,0.063932]
[1743745148653,9.84016737,116.26,116.25,0.063932]
[1743745149058,41.22016737,116.26,116.21,2.3607]
[1743745149257,18.44596737,116.25,116.21,10.9686]
[1743745149558,9.84016737,116.25,116.21,2.3607]
[1743745149751,18.44576737,116.25,116.22,8.6072]
[1743745150056,9.84016737,116.23,116.17,12.17536737]
[1743745150255,9.84016737,116.23,116.18,9.84016737]
[1743745150555,0.06504506,116.22,116.2,8.6089]
[1743745151056,0.06504506,116.22,116.21,8.6083]
[1743745153250,0.06504506,116.22,116.2,8.6089]
[1743745153447,0.06504506,116.22,116.19,0.05658867]
[1743745153953,0.06504506,116.22,116.2,8.6087]
[1743745154759,0.06504506,116.22,116.21,8.6083]
[1743745154959,0.06504506,116.22,116.19,9.89675604]
[1743745155160,0.06504506,116.22,116.2,8.6087]
[1743745155462,0.06504506,116.22,116.19,0.05658867]
[1743745156062,9.90521243,116.22,116.19,0.05658867]
[1743745156561,9.84016737,116.2,116.19,0.05658867]
[1743745157461,9.84016737,116.21,116.19,8.66598867]
[1743745157757,4.55014506,116.22,116.19,8.66598867]
[1743745157960,4.55014506,116.22,116.19,0.05658867]
[1743745158161,8.6084,116.21,116.19,0.05658867]
[1743745158861,40.3891,116.2,116.19,0.05658867]
[1743745159160,31.78,116.2,116.19,0.05658867]
[1743745160459,40.3891,116.2,116.19,0.05658867]
[1743745160658,40.3891,116.2,116.16,8.6117]
[1743745160659,31.78,116.2,116.13,2.3494]
[1743745160862,31.78,116.2,116.13,34.1694]
[1743745161161,8.6111,116.18,116.14,8.6132]
[1743745161361,31.78,116.2,116.13,34.1694]
[1743745161562,8.6106,116.18,116.15,8.6124]
[1743745161856,0.06130598,116.18,116.15,8.67159369]
[1743745162456,0.06130598,116.18,116.15,0.05919369]
[1743745163763,8.6114,116.17,116.15,0.05919369]
[1743745164263,0.06130598,116.18,116.15,8.67179369]
[1743745167668,8.67190598,116.18,116.15,8.67179369]
[1743745169274,8.6113,116.17,116.15,0.05919369]
[1743745169463,0.06130598,116.18,116.15,0.05919369]
[1743745169772,0.06130598,116.18,116.16,8.6115]
[1743745170567,0.06130598,116.18,116.15,8.67149369]
[1743745171876,0.06130598,116.18,116.16,8.612]
[1743745172376,0.06130598,116.18,116.17,8.6113]
[1743745172775,0.06130598,116.18,116.15,0.05919369]
[1743745172977,0.06130598,116.18,116.16,8.6116]
[1743745179685,9.89864511,116.18,116.16,8.6116]
[1743745184187,0.06130598,116.18,116.17,8.6113]
[1743745188497,13.093,116.22,116.19,8.6094]
[1743745188498,14.32243913,116.22,116.19,8.6094]
[1743745189696,14.38456175,116.22,116.19,8.66739656]
[1743745190087,9.83733913,116.21,116.19,0.05799656]
[1743745190597,9.83733913,116.21,116.19,8.66779656]
[1743745191294,13.15482262,116.22,116.19,8.66779656]
[1743745191493,14.38456175,116.22,116.2,8.609]
[1743745191694,14.38456175,116.22,116.19,0.05799656]
[1743745191695,9.89946175,116.22,116.19,0.05799656]
[1743745191894,0.06212262,116.22,116.21,8.6083]
[1743745192096,0.06212262,116.22,116.19,0.05799656]
[1743745192699,0.06212262,116.22,116.2,8.6087]
[1743745193495,0.06212262,116.22,116.19,8.66749656]
[1743745193701,9.89946175,116.22,116.19,8.66749656]
[1743745194600,9.83733913,116.2,116.19,0.05799656]
[1743745199003,0.06212262,116.22,116.19,0.05799656]
[1743745199303,9.89946175,116.22,116.2,8.6087]
[1743745199798,0.06212262,116.22,116.21,8.6083]
[1743745200499,0.06212262,116.22,116.21,18.44563913]
[1743745204302,2.262e-05,116.22,116.21,49.94563913]
[1743745207208,48.25983913,116.29,116.26,8.6043]
[1743745207507,56.86223913,116.29,116.26,8.6043]
[1743745207906,48.25983913,116.29,116.26,8.6043]
[1743745208407,48.32087441,116.29,116.26,8.66096939]
[1743745208906,48.32087441,116.29,116.26,0.05666939]
[1743745209107,9.83733913,116.28,116.26,0.05666939]
[1743745209309,9.83733913,116.28,116.26,8.66086939]
[1743745210008,9.83733913,116.28,116.26,0.05666939]
[1743745210203,41.25733913,116.27,116.12,17.2297]
[1743745210403,9.83733913,116.24,116.19,12.04553913]
[1743745210604,9.83733913,116.26,116.21,9.83733913]
[1743745210808,41.25733913,116.27,116.21,9.83733913]
[1743745211007,41.25733913,116.27,116.24,8.6058]
[1743745211309,41.25733913,116.27,116.24,8.6636919]
[1743745211510,41.31175371,116.27,116.24,0.0578919]
[1743745211712,49.91585371,116.27,116.24,0.0578919]
[1743745212915,0.05441458,116.27,116.24,9.89523103]
[1743745213314,0.05441458,116.27,116.25,8.6054]
[1743745213613,0.05441458,116.27,116.24,0.0578919]
[1743745214216,9.89175371,116.27,116.24,0.0578919]
[1743745214614,9.83733913,116.26,116.24,0.0578919]
[1743745214916,41.31733913,116.26,116.24,0.0578919]
[1743745217419,49.92203913,116.26,116.24,0.0578919]
[1743745217721,41.31733913,116.26,116.24,0.0578919]
[1743745220818,31.48,116.26,116.25,8.6054]
[1743745221122,0.05441458,116.27,116.24,0.0578919]
[1743745221425,0.05441458,116.27,116.26,8.6046]
[1743745223021,9.89175371,116.27,116.25,8.6051]
[1743745224323,9.89175371,116.27,116.25,8.6048]
[1743745224523,9.89175371,116.27,116.24,0.0578919]
[1743745224821,9.89175371,116.27,116.24,8.6637919]
[1743745225424,9.89175371,116.27,116.25,8.6053]
[1743745225624,0.05441458,116.27,116.25,8.6053]
[1743745226625,1.458e-05,116.27,116.26,18.44193913]
[1743745227022,1.458e-05,116.27,116.26,27.04193913]
[1743745227628,1.458e-05,116.27,116.26,18.44193913]
[1743745229324,1.458e-05,116.27,116.26,27.04193913]
[1743745229521,18.43643913,116.34,116.3,8.601]
[1743745230721,0.06334745,116.33,116.31,0.06139897]
[1743745232627,9.90068658,116.33,116.31,0.06139897]
[1743745234228,0.06334745,116.33,116.31,0.06139897]
[1743745234429,0.06334745,116.33,116.31,8.66179897]
[1743745234928,0.06334745,116.33,116.31,0.06139897]
[1743745236123,9.90068658,116.33,116.31,0.06139897]
[1743745236429,9.83733913,116.32,116.31,0.06139897]
[1743745238024,18.43753913,116.32,116.31,0.06139897]
[1743745238229,18.43753913,116.32,116.24,9.83733913]
[1743745238230,9.83733913,116.32,116.24,9.83733913]
[1743745238430,9.83733913,116.29,116.24,9.83733913]
[1743745238630,9.83733913,116.28,116.26,8.6042]
[1743745238829,9.83733913,116.29,116.26,8.6042]
[1743745239334,9.89660837,116.29,116.26,8.66386956]
[1743745239535,9.89660837,116.29,116.27,8.6039]
[1743745240235,0.05926924,116.29,116.27,8.6039]
[1743745243544,0.05926924,116.29,116.26,8.66386956]
[1743745243745,0.05926924,116.29,116.26,0.05966956]
[1743745244849,0.05926924,116.29,116.28,8.6031]
[1743745248949,0.05926924,116.29,116.27,8.6039]
[1743745249350,0.05926924,116.29,116.28,8.6031]
[1743745251152,9.89660837,116.29,116.26,0.05966956]
[1743745251451,9.83733913,116.28,116.26,0.05966956]
[1743745252154,9.83733913,116.27,116.26,0.05966956]
[1743745253843,41.15733913,116.28,116.26,0.05966956]
[1743745254751,41.15733913,116.28,116.26,8.66396956]
[1743745254950,31.32,116.28,116.26,8.66396956]
[1743745255455,31.32,116.28,116.27,8.6039]
[1743745255854,0.05926924,116.29,116.27,8.6039]
[1743745256658,0.05926924,116.29,116.26,8.66386956]
[1743745257049,0.05926924,116.29,116.26,0.05966956]
[1743745257246,0.05926924,116.29,116.27,8.6035]
[1743745258854,9.89660837,116.29,116.26,8.66386956]
[1743745260451,9.83733913,116.28,116.26,0.05966956]
[1743745260657,41.09733913,116.27,116.2,9.83733913]
[1743745260856,9.83733913,116.25,116.19,9.83733913]
[1743745261050,9.83733913,116.25,116.21,8.6078]
[1743745261251,9.83733913,116.22,116.17,2.2409]
[1743745261454,9.83733913,116.21,116.17,2.2409]
[1743745261954,0.05975546,116.2,116.19,8.6094]
[1743745262756,0.05975546,116.2,116.19,18.44673913]
[1743745263265,31.24,116.24,116.22,8.6071]
[1743745264561,31.30507971,116.24,116.22,8.6690792]
[1743745267056,0.06507971,116.24,116.23,8.6069]
[1743745267256,9.83733913,116.28,116.23,41.03733913]
[1743745267551,12.00403913,116.29,116.24,9.83733913]
[1743745267955,12.00403913,116.29,116.26,8.6046]
[1743745268156,12.00403913,116.29,116.24,9.83733913]
[1743745268364,8.6035,116.28,116.25,8.6048]
[1743745268662,0.06154358,116.28,116.25,8.67025798]
[1743745269161,0.06154358,116.28,116.26,8.6045]
[1743745272066,0.06154358,116.28,116.27,8.6039]
[1743745276272,0.06154358,116.28,116.26,39.7444]
[1743745276863,0.06154358,116.28,116.27,8.6039]
[1743745278164,0.06154358,116.28,116.27,39.7039]
[1743745278873,10.8278,116.33,116.3,8.6016]
[1743745279064,8.5998,116.33,116.27,31.1]
[1743745279264,583.30432159,116.34,116.27,31.1]
[1743745279465,8.6006,116.32,116.28,8.6027]
[1743745280168,0.06253838,116.31,116.29,8.66873596]
[1743745280770,0.06253838,116.31,116.29,0.06633596]
[1743745281671,0.06253838,116.31,116.29,8.66833596]
[1743745282474,0.06253838,116.31,116.29,0.06633596]
[1743745282968,8.6017,116.3,116.29,0.06633596]
[1743745283173,31.16,116.3,116.23,2.3035]
[1743745283369,15.34432159,116.29,116.23,2.3035]
[1743745283771,23.94712159,116.29,116.25,8.605]
[1743745284368,0.06590198,116.28,116.26,0.05801571]
[1743745284574,31.18,116.27,116.26,0.05801571]
[1743745285969,39.7839,116.27,116.26,0.05801571]
[1743745287973,39.7839,116.27,116.2,22.24552159]
[1743745287974,46.52432159,116.27,116.2,2.3119]
[1743745288470,8.6059,116.25,116.21,8.608]
[1743745288671,31.2,116.24,116.21,8.608]
[1743745289069,31.26232724,116.24,116.21,8.67194996]
[1743745290078,31.26232724,116.24,116.21,0.06394996]
[1743745290269,0.06232724,116.24,116.21,0.06394996]
[1743745291175,0.06232724,116.24,116.23,8.6069]
[1743745292674,0.06232724,116.24,116.22,8.6073]
[1743745298678,0.06232724,116.24,116.21,0.06394996]
[1743745299679,0.06232724,116.24,116.22,8.607]
[1743745299881,0.06232724,116.24,116.21,0.06394996]
[1743745300781,0.06232724,116.24,116.22,8.6076]
[1743745301281,18.49470031,116.24,116.21,8.67204996]
[1743745301478,9.82617307,116.23,116.21,0.06394996]
[1743745301781,49.55357307,116.23,116.21,0.06394996]
[1743745302677,40.94617307,116.23,116.21,0.06394996]
[1743745302883,40.94617307,116.23,116.18,9.82617307]
[1743745302884,9.82617307,116.22,116.15,2.2655]
[1743745303184,9.82617307,116.2,116.15,12.09167307]
[1743745303382,49.67537307,116.2,116.17,8.6109]
[1743745303779,49.67537307,116.2,116.15,12.09167307]
[1743745303985,9.82617307,116.19,116.15,2.2655]
[1743745304284,9.88782527,116.19,116.16,0.06615274]
[1743745305083,9.88782527,116.19,116.17,8.6109]
[1743745305583,9.88782527,116.19,116.16,0.06615274]
[1743745306582,0.0616522,116.19,116.16,9.89232581]
[1743745309180,0.0616522,116.19,116.18,8.6106]
[1743745313480,33.396,116.23,116.17,9.82617307]
[1743745313683,9.82617307,116.22,116.17,9.82617307]
[1743745314284,9.82617307,116.22,116.21,8.6083]
[1743745314484,40.96617307,116.23,116.21,8.6083]
[1743745314680,41.0258825,116.23,116.2,8.66444264]
[1743745315086,9.8858825,116.23,116.2,8.66444264]
[1743745315287,31.12,116.22,116.2,8.66444264]
[1743745316391,31.12,116.22,116.2,0.05574264]
[1743745316988,31.12,116.22,116.2,8.66444264]
[1743745317894,40.94617307,116.22,116.2,8.66444264]
[1743745318594,40.94617307,116.22,116.2,0.05574264]
[1743745318894,9.82617307,116.21,116.2,0.05574264]
[1743745319793,18.43447307,116.21,116.14,31.06]
[1743745319993,9.82617307,116.2,116.15,9.82617307]
[1743745320195,9.82617307,116.2,116.18,8.6104]
[1743745320794,40.86617307,116.19,116.17,8.6109]
[1743745321091,31.04,116.19,116.18,0.06097047]
[1743745321293,40.86617307,116.19,116.18,0.06097047]
[1743745321485,40.86617307,116.19,116.17,0.05925615]
[1743745321690,9.82617307,116.18,116.13,9.82617307]
[1743745321890,9.82617307,116.18,116.17,0.05933591]
[1743745322090,9.82617307,116.18,116.16,8.6117]
[1743745322295,9.82617307,116.18,116.16,8.67511542]
[1743745323000,31.09809648,116.19,116.16,0.06341542]
[1743745323211,0.05809648,116.19,116.16,9.88958849]
[1743745323401,0.05809648,116.19,116.17,9.82617307]
[1743745323907,0.05809648,116.19,116.18,8.6106]
[1743745327696,0.05809648,116.19,116.17,8.611]
[1743745329005,39.68789648,116.19,116.16,8.67491542]
[1743745329603,39.68789648,116.19,116.16,0.06341542]
[1743745329604,8.6107,116.18,116.16,0.06341542]
[1743745329804,18.43687307,116.18,116.16,0.06341542]
[1743745330202,31.07809648,116.19,116.16,0.06341542]
[1743745330408,0.05809648,116.19,116.17,9.82617307]
[1743745331616,0.05809648,116.19,116.18,8.6106]
[1743745334215,0.05809648,116.19,116.16,0.06341542]
[1743745334807,0.05809648,116.19,116.18,8.6106]